[Event "CZE-ch U16 Girls 2023"]
[Site "Teplice"]
[Date "2023.03.12"]
[Round "2.6"]
[White "Barteckova, Denisa"]
[Black "Cinkova, Vicky"]
[Result "1/2-1/2"]
[ECO "B28"]
[WhiteElo "1417"]
[BlackElo "1285"]
[Annotator "NA RC COMBH"]
[PlyCount "59"]
[EventDate "2023.03.09"]
[EventType "swiss"]
[EventCountry "CZE"]
[SourceTitle "playchess.com"]
[Source "ChessBase"]
[SourceQuality "1"]
[TimeControl "40/5400+30:1800+30"]

1. e4 {[%emt 0:00:01]} c5 {[%emt 0:00:08]} 2. Nf3 {[%emt 0:00:07]} a6 {[%emt 0:00:08]} 3. d4 {[%emt 0:00:23]} cxd4 {[%emt 0:00:16]} 4. Nxd4 {[%emt 0:00:05]} Nf6 {[%emt 0:00:36]} 5. Nc3 {[%emt 0:00:07]} e5 {[%emt 0:00:39]} 6. Nb3 {[%emt 0:01:56]} Bb4 {[%emt 0:05:37]} 7. Qf3 {[%emt 0:14:02]} O-O {[%emt 0:15:41]} 8. Bd2 {[%emt 0:03:15]} Nc6 {[%emt 0:07:15]} 9. a3 {[%emt 0:02:16]} Nd4 {[%emt 0:15:39]} 10. Qd3 {[%emt 0:03:58]} Bxc3 {[%emt 0:06:07]} 11. Bxc3 {[%emt 0:00:56]} Nxb3 {[%emt 0:06:47]} 12. cxb3 {[%emt 0:00:17]} d5 {[%emt 0:01:37]} 13. exd5 {[%emt 0:00:40]} Qxd5 {[%emt 0:01:32]} 14. Qxd5 {[%emt 0:01:01]} Nxd5 {[%emt 0:00:04]} 15. O-O-O {[%emt 0:01:01]} Nxc3 {[%emt 0:00:51]} 16. bxc3 {[%emt 0:00:08]} Be6 {[%emt 0:03:44]} 17. Kb2 {[%emt 0:01:02]} g6 {[%emt 0:00:52]} 18. f3 {[%emt 0:01:00]} Rac8 {[%emt 0:02:37]} 19. Bd3 {[%emt 0:01:09]} Rc7 {[%emt 0:01:46]} 20. Rd2 {[%emt 0:00:57]} Rfc8 {[%emt 0:02:06]} 21. Rc1 {[%emt 0:00:48]} Rd7 {[%emt 0:09:13]} 22. Rcd1 {[%emt 0:00:29]} Rcd8 {[%emt 0:01:37]} 23. Kc2 {[%emt 0:01:01]} b5 {[%emt 0:00:54]} 24. b4 {[%emt 0:00:36]} Kg7 {[%emt 0:00:41]} 25. Kc1 {[%emt 0:02:28]} Rc8 {[%emt 0:01:56]} 26. Kb2 {[%emt 0:01:04]} Rcd8 {[%emt 0:02:43]} 27. Kc1 {[%emt 0:01:53]} Rc8 {[%emt 0:00:26]} 28. Kb2 {[%emt 0:01:21]} Rcd8 {[%emt 0:00:04]} 29. Kc1 {[%emt 0:00:34]} Rc8 {[%emt 0:00:04]} 30. Kb2 {[%emt 0:00:11]} 1/2-1/2

[Event "CZE-ch U16 Girls 2023"]
[Site "Teplice"]
[Date "2023.03.12"]
[Round "2.7"]
[White "Andilova, Klara"]
[Black "Souralova, Jana"]
[Result "1/2-1/2"]
[ECO "C88"]
[WhiteElo "1104"]
[BlackElo "1187"]
[Annotator "NA RC COMBH"]
[PlyCount "61"]
[EventDate "2023.03.09"]
[EventType "swiss"]
[EventCountry "CZE"]
[SourceTitle "playchess.com"]
[Source "ChessBase"]
[SourceQuality "1"]
[TimeControl "40/5400+30:1800+30"]

1. e4 {[%emt 0:00:02]} e5 {[%emt 0:00:06]} 2. Nf3 {[%emt 0:00:08]} Nc6 {[%emt 0:00:05]} 3. Bb5 {[%emt 0:00:08]} a6 {[%emt 0:00:12]} 4. Ba4 {[%emt 0:00:07]} Nf6 {[%emt 0:00:16]} 5. O-O {[%emt 0:00:12]} Be7 {[%emt 0:00:09]} 6. Re1 {[%emt 0:00:25]} b5 {[%emt 0:00:23]} 7. Bb3 {[%emt 0:00:10]} O-O {[%emt 0:00:18]} 8. a4 {[%emt 0:00:09]} Bb7 {[%emt 0:04:06]} 9. c3 {[%emt 0:03:19]} d5 {[%emt 0:11:04]} 10. d3 {[%emt 0:07:10]} dxe4 {[%emt 0:12:23]} 11. dxe4 {[%emt 0:00:33]} Qxd1 {[%emt 0:01:13]} 12. Bxd1 {[%emt 0:00:15]} Rad8 {[%emt 0:00:54]} 13. Nbd2 {[%emt 0:01:55]} Na7 {[%emt 0:08:48]} 14. Bc2 {[%emt 0:05:44]} Bd6 {[%emt 0:05:50]} 15. Nf1 {[%emt 0:03:14]} Rfe8 {[%emt 0:04:52]} 16. Bg5 {[%emt 0:04:05]} Be7 {[%emt 0:08:17]} 17. Nxe5 {[%emt 0:05:15]} h6 {[%emt 0:14:42]} 18. Bh4 {[%emt 0:05:47]} Nh7 {[%emt 0:00:36]} 19. Nf3 {[%emt 0:04:12]} Bxh4 {[%emt 0:01:32]} 20. Nxh4 {[%emt 0:01:30]} Ng5 {[%emt 0:00:24]} 21. f3 {[%emt 0:08:23]} g6 {[%emt 0:03:08]} 22. Bb3 {[%emt 0:01:09]} Nc8 {[%emt 0:02:21]} 23. Nxg6 {[%emt 0:00:50]} Kg7 {[%emt 0:02:28]} 24. Nf4 {[%emt 0:00:39]} Nd6 {[%emt 0:01:04]} 25. Nd2 {[%emt 0:04:46]} c5 {[%emt 0:02:35]} 26. axb5 {[%emt 0:03:52]} axb5 {[%emt 0:00:11]} 27. Bc2 {[%emt 0:04:00]} Ne6 {[%emt 0:04:27]} 28. Nd3 {[%emt 0:01:41]} c4 {[%emt 0:01:29]} 29. Ne5 {[%emt 0:01:54]} Nf4 {[%emt 0:01:05]} 30. Ng4 {[%emt 0:01:57]} Re6 {[%emt 0:02:22]} 31. g3 {[%emt 0:03:43]} 1/2-1/2

[Event "CZE-ch U16 Girls 2023"]
[Site "Teplice"]
[Date "2023.03.12"]
[Round "2.8"]
[White "Sikorova, Jana"]
[Black "Reznickova, Sibyla"]
[Result "1-0"]
[ECO "D15"]
[WhiteElo "1735"]
[BlackElo "1386"]
[Annotator "NA RC COMBH"]
[PlyCount "79"]
[EventDate "2023.03.09"]
[EventType "swiss"]
[EventCountry "CZE"]
[SourceTitle "playchess.com"]
[Source "ChessBase"]
[SourceQuality "1"]
[TimeControl "40/5400+30:1800+30"]

1. d4 {[%emt 0:00:03]} d5 {[%emt 0:00:09]} 2. c4 {[%emt 0:00:08]} c6 {[%emt 0:00:33]} 3. Nc3 {[%emt 0:00:44]} Nf6 {[%emt 0:00:56]} 4. Nf3 {[%emt 0:00:43]} Bf5 {[%emt 0:05:46]} 5. Qb3 {[%emt 0:03:19]} Qb6 {[%emt 0:06:57]} 6. c5 {[%emt 0:01:31]} Qxb3 {[%emt 0:04:46]} 7. axb3 {[%emt 0:00:12]} Nbd7 {[%emt 0:00:52]} 8. b4 {[%emt 0:03:37]} e6 {[%emt 0:03:41]} 9. b5 {[%emt 0:02:16]} Ne4 {[%emt 0:05:54]} 10. Nxe4 {[%emt 0:02:05]} Bxe4 {[%emt 0:01:00]} 11. bxc6 {[%emt 0:02:40]} bxc6 {[%emt 0:00:45]} 12. Bf4 {[%emt 0:00:18]} f6 {[%emt 0:02:38]} 13. Bc7 {[%emt 0:09:47]} Be7 {[%emt 0:02:44]} 14. e3 {[%emt 0:01:47]} Nb8 {[%emt 0:07:31]} 15. Bb6 {[%emt 0:11:32]} O-O {[%emt 0:09:54]} 16. Kd2 {[%emt 0:04:05]} Nd7 {[%emt 0:01:43]} 17. Ba5 {[%emt 0:11:49]} Rab8 {[%emt 0:08:55]} 18. b4 {[%emt 0:01:51]} f5 {[%emt 0:05:13]} 19. Kc3 {[%emt 0:05:12]} g5 {[%emt 0:03:32]} 20. Nd2 {[%emt 0:02:16]} f4 {[%emt 0:03:29]} 21. Nxe4 {[%emt 0:01:46]} dxe4 {[%emt 0:00:23]} 22. exf4 {[%emt 0:00:13]} gxf4 {[%emt 0:01:07]} 23. Bc4 {[%emt 0:01:09]} Rf6 {[%emt 0:03:34]} 24. Rhe1 {[%emt 0:00:47]} e3 {[%emt 0:05:13]} 25. fxe3 {[%emt 0:00:30]} fxe3 {[%emt 0:00:22]} 26. Rxe3 {[%emt 0:00:16]} Kf7 {[%emt 0:01:54]} 27. Bc7 {[%emt 0:02:41]} Rb7 {[%emt 0:01:28]} 28. Bg3 {[%emt 0:00:20]} Nf8 {[%emt 0:00:53]} 29. Ra6 {[%emt 0:01:21]} Rg6 {[%emt 0:03:57]} 30. Rxc6 {[%emt 0:01:12]} Bf6 {[%emt 0:01:11]} 31. Rf3 {[%emt 0:03:14]} Ke7 {[%emt 0:01:39]} 32. Ba6 {[%emt 0:03:16]} Rd7 {[%emt 0:01:07]} 33. Bd6+ {[%emt 0:01:30]} Kf7 {[%emt 0:01:00]} 34. Rc8 {[%emt 0:01:43]} Rxd6 {[%emt 0:02:46]} 35. cxd6 {[%emt 0:00:26]} Nd7 {[%emt 0:02:48]} 36. Rc7 {[%emt 0:00:52]} Ke8 {[%emt 0:00:20]} 37. Bb5 {[%emt 0:00:21]} e5 {[%emt 0:00:50]} 38. Bxd7+ {[%emt 0:00:54]} Kd8 {[%emt 0:00:19]} 39. Bf5 {[%emt 0:01:09]} exd4+ {[%emt 0:00:48]} 40. Kd3 {[%emt 0:00:09]} 1-0

[Event "CZE-ch U16 Girls 2023"]
[Site "Teplice"]
[Date "2023.03.12"]
[Round "2.9"]
[White "Hetfleischova, Elen"]
[Black "Mullerova, Karina Nela"]
[Result "1/2-1/2"]
[ECO "C34"]
[WhiteElo "1623"]
[BlackElo "1283"]
[Annotator "NA RC COMBH"]
[PlyCount "73"]
[EventDate "2023.03.09"]
[EventType "swiss"]
[EventCountry "CZE"]
[SourceTitle "playchess.com"]
[Source "ChessBase"]
[SourceQuality "1"]
[TimeControl "40/5400+30:1800+30"]

1. e4 {[%emt 0:00:07]} e5 {[%emt 0:00:33]} 2. f4 {[%emt 0:00:09]} exf4 {[%emt 0:00:17]} 3. Nf3 {[%emt 0:00:07]} h6 {[%emt 0:00:55]} 4. Bc4 {[%emt 0:01:08]} d6 {[%emt 0:00:48]} 5. O-O {[%emt 0:01:26]} Nc6 {[%emt 0:02:21]} 6. d4 {[%emt 0:00:38]} g5 {[%emt 0:00:13]} 7. Nc3 {[%emt 0:02:37]} Bg4 {[%emt 0:03:54]} 8. Nd5 {[%emt 0:12:20]} Bg7 {[%emt 0:03:09]} 9. c3 {[%emt 0:04:33]} Qd7 {[%emt 0:03:28]} 10. Bb5 {[%emt 0:05:12]} a6 {[%emt 0:06:22]} 11. Ba4 {[%emt 0:00:50]} b5 {[%emt 0:03:03]} 12. Bb3 {[%emt 0:02:32]} Nge7 {[%emt 0:04:00]} 13. a4 {[%emt 0:04:52]} O-O {[%emt 0:00:47]} 14. axb5 {[%emt 0:03:42]} axb5 {[%emt 0:00:42]} 15. Rxa8 {[%emt 0:01:15]} Rxa8 {[%emt 0:00:41]} 16. h3 {[%emt 0:07:13]} Bh5 {[%emt 0:07:15]} 17. Qe2 {[%emt 0:12:57]} Rb8 {[%emt 0:04:02]} 18. Qf2 {[%emt 0:03:29]} b4 {[%emt 0:05:13]} 19. Ba4 {[%emt 0:05:32]} Qd8 {[%emt 0:03:53]} 20. Nxe7+ {[%emt 0:06:02]} Nxe7 {[%emt 0:00:29]} 21. Rd1 {[%emt 0:05:54]} Qf8 {[%emt 0:14:04]} 22. Re1 {[%emt 0:05:56]} bxc3 {[%emt 0:15:45]} 23. bxc3 {[%emt 0:00:28]} Ra8 {[%emt 0:06:48]} 24. Bb3 {[%emt 0:04:00]} Bxf3 {[%emt 0:05:07]} 25. Qxf3 {[%emt 0:01:28]} c6 {[%emt 0:00:33]} 26. Qh5 {[%emt 0:02:07]} Ng6 {[%emt 0:02:00]} 27. Qxg6 {[%emt 0:00:48]} Rb8 {[%emt 0:01:09]} 28. Bxf7+ {[%emt 0:00:38]} Qxf7 {[%emt 0:00:35]} 29. Qxd6 {[%emt 0:00:23]} Rc8 {[%emt 0:00:45]} 30. Qb4 {[%emt 0:03:33]} c5 {[%emt 0:03:46]} 31. Qa4 {[%emt 0:01:28]} cxd4 {[%emt 0:00:40]} 32. cxd4 {[%emt 0:00:48]} Rc4 33. Qa8+ Kh7 {[%emt 0:00:32]} 34. Bb2 {[%emt 0:01:09]} Bxd4+ {[%emt 0:00:23]} 35. Bxd4 {[%emt 0:00:08]} Rxd4 {[%emt 0:00:07]} 36. e5 {[%emt 0:00:26]} Qe6 {[%emt 0:02:25]} 37. Qb7+ {[%emt 0:01:53]} 1/2-1/2

[Event "CZE-ch U16 Girls 2023"]
[Site "Teplice"]
[Date "2023.03.12"]
[Round "2.10"]
[White "Archlebova, Stela"]
[Black "Sterikova, Marketa"]
[Result "1-0"]
[ECO "C23"]
[WhiteElo "1360"]
[BlackElo "1254"]
[Annotator "NA RC COMBH"]
[PlyCount "57"]
[EventDate "2023.03.09"]
[EventType "swiss"]
[EventCountry "CZE"]
[SourceTitle "playchess.com"]
[Source "ChessBase"]
[SourceQuality "1"]
[TimeControl "40/5400+30:1800+30"]

1. e4 {[%emt 0:00:03]} e5 {[%emt 0:00:06]} 2. Bc4 {[%emt 0:00:26]} Bc5 {[%emt 0:00:25]} 3. Nf3 {[%emt 0:00:18]} d6 {[%emt 0:02:58]} 4. Nc3 {[%emt 0:00:47]} Nf6 {[%emt 0:00:30]} 5. d3 {[%emt 0:00:24]} O-O {[%emt 0:01:39]} 6. Bg5 {[%emt 0:00:18]} Be6 {[%emt 0:03:42]} 7. Bb3 {[%emt 0:03:27]} Nc6 {[%emt 0:03:06]} 8. Qd2 {[%emt 0:04:38]} Na5 {[%emt 0:02:28]} 9. Bxe6 fxe6 {[%emt 0:00:14]} 10. Na4 {[%emt 0:12:25]} Bb6 {[%emt 0:01:52]} 11. Nxb6 {[%emt 0:02:30]} axb6 {[%emt 0:00:10]} 12. O-O {[%emt 0:06:22]} Qd7 {[%emt 0:01:30]} 13. h3 {[%emt 0:04:24]} Nc6 {[%emt 0:01:35]} 14. Rfe1 {[%emt 0:02:31]} Qf7 {[%emt 0:14:51]} 15. c3 {[%emt 0:02:40]} h6 {[%emt 0:01:29]} 16. Bh4 {[%emt 0:02:06]} Qg6 {[%emt 0:01:33]} 17. Bg3 {[%emt 0:02:49]} Nh5 {[%emt 0:00:42]} 18. Nh4 {[%emt 0:04:54]} Qf6 {[%emt 0:02:39]} 19. Nf3 {[%emt 0:03:20]} Nxg3 {[%emt 0:00:33]} 20. fxg3 {[%emt 0:00:10]} Qe7 {[%emt 0:03:08]} 21. a3 {[%emt 0:08:48]} Rad8 {[%emt 0:05:05]} 22. d4 {[%emt 0:04:23]} exd4 {[%emt 0:00:27]} 23. cxd4 {[%emt 0:00:15]} d5 {[%emt 0:06:05]} 24. exd5 {[%emt 0:05:50]} Rxd5 {[%emt 0:00:37]} 25. Rad1 {[%emt 0:02:20]} Rfd8 {[%emt 0:00:45]} 26. Re4 {[%emt 0:05:47]} Qd6 {[%emt 0:11:48]} 27. Qe3 {[%emt 0:03:13]} Qxg3 {[%emt 0:02:11]} 28. Rxe6 {[%emt 0:00:14]} Rh5 {[%emt 0:10:57]} 29. Re8+ {[%emt 0:07:35]} 1-0

[Event "CZE-ch U16 Girls 2023"]
[Site "Teplice"]
[Date "2023.03.12"]
[Round "2.11"]
[White "Dominikova, Denisa"]
[Black "Hrbkova, Johana"]
[Result "1-0"]
[ECO "C42"]
[WhiteElo "1301"]
[BlackElo "1254"]
[Annotator "NA RC COMBH"]
[PlyCount "107"]
[EventDate "2023.03.09"]
[EventType "swiss"]
[EventCountry "CZE"]
[SourceTitle "playchess.com"]
[Source "ChessBase"]
[SourceQuality "1"]
[TimeControl "40/5400+30:1800+30"]

1. e4 {[%emt 0:00:05]} e5 {[%emt 0:00:04]} 2. Nf3 {[%emt 0:00:09]} Nf6 {[%emt 0:00:06]} 3. Nxe5 {[%emt 0:00:23]} d6 {[%emt 0:00:39]} 4. Nf3 {[%emt 0:00:13]} Nxe4 {[%emt 0:00:25]} 5. Nc3 {[%emt 0:00:30]} d5 {[%emt 0:02:41]} 6. Qe2 {[%emt 0:07:51]} Be6 {[%emt 0:11:17]} 7. Nxe4 {[%emt 0:04:18]} dxe4 {[%emt 0:01:48]} 8. Qxe4 {[%emt 0:02:19]} Nc6 {[%emt 0:04:14]} 9. Bb5 {[%emt 0:05:59]} Qd6 {[%emt 0:05:22]} 10. Nd4 {[%emt 0:10:54]} Qd5 {[%emt 0:03:52]} 11. d3 {[%emt 0:07:54]} O-O-O {[%emt 0:09:29]} 12. Nxc6 {[%emt 0:04:55]} bxc6 {[%emt 0:05:30]} 13. Bxc6 {[%emt 0:01:20]} Qa5+ {[%emt 0:02:26]} 14. Bd2 {[%emt 0:06:11]} Qb6 {[%emt 0:03:27]} 15. Bc3 {[%emt 0:01:44]} Bc5 {[%emt 0:18:15]} 16. O-O {[%emt 0:01:57]} Rd6 {[%emt 0:03:39]} 17. Ba4 {[%emt 0:01:28]} Bd5 {[%emt 0:01:47]} 18. Qg4+ {[%emt 0:03:04]} Kb7 {[%emt 0:03:12]} 19. g3 {[%emt 0:06:47]} h5 {[%emt 0:03:43]} 20. Qxg7 {[%emt 0:04:17]} Rhh6 {[%emt 0:01:28]} 21. Bb3 {[%emt 0:07:22]} Bxb3 {[%emt 0:06:42]} 22. axb3 {[%emt 0:03:22]} h4 {[%emt 0:01:57]} 23. Qe5 {[%emt 0:05:47]} Rhe6 {[%emt 0:04:18]} 24. Qf4 {[%emt 0:01:30]} Qc6 {[%emt 0:01:21]} 25. Qxh4 {[%emt 0:01:33]} f5 {[%emt 0:01:17]} 26. Qh3 {[%emt 0:02:32]} f4 {[%emt 0:03:29]} 27. Qg2 {[%emt 0:01:30]} f3 {[%emt 0:00:22]} 28. Qh3 {[%emt 0:00:17]} Re2 {[%emt 0:01:06]} 29. Qg4 {[%emt 0:01:58]} Rg6 {[%emt 0:00:30]} 30. Qf4 {[%emt 0:01:14]} Bd6 {[%emt 0:00:31]} 31. Qa4 {[%emt 0:01:59]} Qb6 {[%emt 0:00:27]} 32. d4 {[%emt 0:01:51]} Rxc2 {[%emt 0:00:33]} 33. Ba5 {[%emt 0:00:47]} Qa6 {[%emt 0:00:25]} 34. Qe8 {[%emt 0:01:20]} Bxg3 {[%emt 0:00:36]} 35. Qe4+ {[%emt 0:01:07]} Rcc6 {[%emt 0:00:26]} 36. hxg3 {[%emt 0:00:56]} Rgf6 {[%emt 0:00:32]} 37. d5 {[%emt 0:00:36]} Rcd6 {[%emt 0:00:32]} 38. Bb4 {[%emt 0:00:38]} Qe2 {[%emt 0:00:20]} 39. Qxe2 {[%emt 0:00:48]} fxe2 {[%emt 0:00:07]} 40. Bxd6 {[%emt 0:00:25]} exf1=Q+ {[%emt 0:00:10]} 41. Rxf1 {[%emt 0:30:35]} Rxd6 {[%emt 0:30:11]} 42. Rd1 {[%emt 0:00:00]} Kb6 {[%emt 0:00:00]} 43. Rd4 {[%emt 0:00:00]} Kb5 {[%emt 0:00:00]} 44. Kg2 {[%emt 0:00:00]} c6 {[%emt 0:00:00]} 45. dxc6 {[%emt 0:00:00]} Rxc6 {[%emt 0:00:00]} 46. Rd2 {[%emt 0:00:00]} Kb4 {[%emt 0:00:00]} 47. f4 {[%emt 0:00:00]} Kxb3 {[%emt 0:00:00]} 48. Rd7 {[%emt 0:00:00]} a5 {[%emt 0:00:00]} 49. Rb7+ {[%emt 0:00:00]} Kc4 {[%emt 0:00:00]} 50. b3+ {[%emt 0:00:00]} Kc3 {[%emt 0:00:00]} 51. Rb5 {[%emt 0:00:00]} Ra6 {[%emt 0:00:00]} 52. f5 {[%emt 0:00:00]} a4 {[%emt 0:00:00]} 53. bxa4 {[%emt 0:00:00]} Rxa4 {[%emt 0:00:00]} 54. f6 {[%emt 0:00:00]} 1-0

[Event "CZE-ch U16 Girls 2023"]
[Site "Teplice"]
[Date "2023.03.12"]
[Round "2.12"]
[White "Stavova, Marketa"]
[Black "Foldynova, Julie"]
[Result "1-0"]
[ECO "C42"]
[WhiteElo "1284"]
[BlackElo "1100"]
[Annotator "NA RC COMBH"]
[PlyCount "135"]
[EventDate "2023.03.09"]
[EventType "swiss"]
[EventCountry "CZE"]
[SourceTitle "playchess.com"]
[Source "ChessBase"]
[SourceQuality "1"]
[TimeControl "40/5400+30:1800+30"]

1. e4 {[%emt 0:00:05]} e5 {[%emt 0:00:10]} 2. Nf3 {[%emt 0:00:13]} Nf6 {[%emt 0:00:18]} 3. Nxe5 {[%emt 0:00:30]} d6 {[%emt 0:00:17]} 4. Nf3 {[%emt 0:00:38]} Nxe4 {[%emt 0:00:11]} 5. d4 {[%emt 0:00:21]} d5 {[%emt 0:00:09]} 6. Bd3 {[%emt 0:00:43]} Be7 {[%emt 0:00:28]} 7. O-O {[%emt 0:00:42]} Nc6 {[%emt 0:01:15]} 8. c4 {[%emt 0:01:03]} Bg4 {[%emt 0:02:18]} 9. Be3 {[%emt 0:03:40]} O-O {[%emt 0:03:39]} 10. Nc3 {[%emt 0:01:06]} Nf6 {[%emt 0:03:48]} 11. h3 {[%emt 0:01:56]} Bxf3 {[%emt 0:01:53]} 12. Qxf3 {[%emt 0:00:17]} dxc4 {[%emt 0:02:01]} 13. Bxc4 {[%emt 0:00:37]} Nxd4 {[%emt 0:02:10]} 14. Qxb7 {[%emt 0:00:26]} Nf5 {[%emt 0:03:13]} 15. Rad1 {[%emt 0:02:56]} Nd6 {[%emt 0:03:59]} 16. Qc6 {[%emt 0:03:29]} Qb8 {[%emt 0:05:50]} 17. Bb3 {[%emt 0:02:28]} Nf5 {[%emt 0:07:44]} 18. Bf4 {[%emt 0:05:30]} Bd6 {[%emt 0:03:32]} 19. Bxd6 {[%emt 0:02:59]} Nxd6 {[%emt 0:02:28]} 20. Rfe1 {[%emt 0:02:53]} Qb6 {[%emt 0:03:06]} 21. Qxb6 {[%emt 0:01:36]} axb6 {[%emt 0:00:11]} 22. Re7 {[%emt 0:01:00]} Rac8 {[%emt 0:03:56]} 23. Rde1 {[%emt 0:07:06]} Nf5 {[%emt 0:02:45]} 24. R7e5 {[%emt 0:01:52]} Nd4 {[%emt 0:02:24]} 25. Bc4 {[%emt 0:04:48]} c5 {[%emt 0:04:32]} 26. a3 {[%emt 0:02:34]} h6 {[%emt 0:04:08]} 27. Nd5 {[%emt 0:04:16]} Nxd5 {[%emt 0:01:29]} 28. Bxd5 {[%emt 0:01:08]} Rfd8 {[%emt 0:01:59]} 29. Be4 {[%emt 0:05:03]} Nc6 {[%emt 0:03:45]} 30. Rd5 {[%emt 0:01:25]} Re8 {[%emt 0:01:53]} 31. Kf1 {[%emt 0:02:49]} Nd4 {[%emt 0:02:07]} 32. b4 {[%emt 0:02:40]} Nb3 {[%emt 0:02:09]} 33. bxc5 {[%emt 0:02:34]} bxc5 {[%emt 0:02:01]} 34. Bc2 {[%emt 0:01:14]} Rxe1+ {[%emt 0:01:45]} 35. Kxe1 {[%emt 0:00:06]} Nd4 {[%emt 0:00:45]} 36. Bd3 {[%emt 0:00:59]} Ra8 {[%emt 0:00:44]} 37. Rxc5 {[%emt 0:00:48]} g6 {[%emt 0:00:57]} 38. Rc4 {[%emt 0:01:53]} Ne6 {[%emt 0:01:46]} 39. a4 {[%emt 0:00:47]} Ra5 {[%emt 0:01:19]} 40. Rb4 {[%emt 0:02:24]} Nc5 {[%emt 0:02:13]} 41. Bb5 {[%emt 0:30:21]} Kf8 {[%emt 0:31:10]} 42. Kd2 {[%emt 0:02:43]} Ke7 {[%emt 0:00:33]} 43. Kc3 {[%emt 0:00:46]} Kd6 {[%emt 0:01:00]} 44. Rc4 {[%emt 0:00:41]} Nb7 {[%emt 0:02:50]} 45. Kb4 {[%emt 0:02:17]} Ra7 {[%emt 0:00:59]} 46. Rc6+ {[%emt 0:01:02]} Kd5 {[%emt 0:00:53]} 47. Rc7 {[%emt 0:02:16]} Kd6 {[%emt 0:00:48]} 48. Rxf7 {[%emt 0:00:08]} Ke6 {[%emt 0:00:26]} 49. Rh7 {[%emt 0:01:35]} h5 {[%emt 0:00:26]} 50. Bc6 {[%emt 0:01:20]} Nd8 {[%emt 0:00:34]} 51. Rxa7 Nxc6+ {[%emt 0:00:18]} 52. Kb5 {[%emt 0:00:55]} Nxa7+ {[%emt 0:00:15]} 53. Kb6 {[%emt 0:00:20]} Nc8+ {[%emt 0:00:24]} 54. Kc7 {[%emt 0:00:14]} Nd6 {[%emt 0:00:22]} 55. a5 {[%emt 0:00:12]} Nb5+ {[%emt 0:00:41]} 56. Kb6 {[%emt 0:00:09]} Nd6 {[%emt 0:00:24]} 57. a6 {[%emt 0:02:28]} Kd7 {[%emt 0:00:23]} 58. a7 {[%emt 0:00:08]} Nc8+ {[%emt 0:00:07]} 59. Kb7 {[%emt 0:00:07]} Nxa7 {[%emt 0:00:12]} 60. Kxa7 {[%emt 0:00:06]} Ke6 {[%emt 0:00:05]} 61. Kb6 {[%emt 0:00:35]} Kf5 {[%emt 0:00:14]} 62. Kc5 {[%emt 0:00:22]} g5 {[%emt 0:00:26]} 63. Kd4 {[%emt 0:00:19]} g4 {[%emt 0:01:20]} 64. hxg4+ {[%emt 0:00:57]} hxg4 {[%emt 0:00:19]} 65. Ke3 {[%emt 0:00:09]} Kg5 {[%emt 0:01:20]} 66. Ke4 {[%emt 0:00:11]} g3 {[%emt 0:01:32]} 67. f3 {[%emt 0:00:04]} Kf6 {[%emt 0:01:33]} 68. Kf4 {[%emt 0:00:13]} 1-0

[Event "CZE-ch U16 Girls 2023"]
[Site "Teplice"]
[Date "2023.03.13"]
[Round "3.1"]
[White "Zelbova, Lada"]
[Black "Dudkova, Josefina"]
[Result "1-0"]
[ECO "B01"]
[WhiteElo "1822"]
[BlackElo "1519"]
[Annotator "NA RC COMBH"]
[PlyCount "43"]
[EventDate "2023.03.09"]
[EventType "swiss"]
[EventCountry "CZE"]
[SourceTitle "playchess.com"]
[Source "ChessBase"]
[SourceQuality "1"]
[TimeControl "40/5400+30:1800+30"]

1. e4 {[%emt 0:00:05]} d5 {[%emt 0:00:21]} 2. exd5 {[%emt 0:00:11]} Qxd5 {[%emt 0:00:14]} 3. Nc3 {[%emt 0:00:31]} Qd6 {[%emt 0:00:08]} 4. d4 {[%emt 0:01:29]} Nf6 {[%emt 0:00:37]} 5. Nf3 {[%emt 0:00:45]} c6 {[%emt 0:00:59]} 6. h3 {[%emt 0:00:36]} g6 {[%emt 0:04:36]} 7. Bd3 {[%emt 0:05:45]} Bg7 {[%emt 0:01:55]} 8. O-O {[%emt 0:03:06]} O-O {[%emt 0:01:38]} 9. Qe2 {[%emt 0:07:55]} Nbd7 {[%emt 0:09:44]} 10. Rd1 {[%emt 0:06:10]} Nb6 {[%emt 0:06:11]} 11. Ne5 {[%emt 0:03:39]} Nbd5 {[%emt 0:03:23]} 12. Nxd5 {[%emt 0:06:54]} cxd5 {[%emt 0:04:43]} 13. Bf4 {[%emt 0:00:42]} Qb6 {[%emt 0:02:45]} 14. c3 {[%emt 0:01:02]} e6 {[%emt 0:06:43]} 15. h4 $16 {[%emt 0:06:32]} Bd7 {[%emt 0:12:17]} 16. g4 {[%emt 0:06:20]} Rfd8 {[%emt 0:05:05]} 17. h5 {[%emt 0:08:04]} a6 {[%emt 0:05:00]} 18. Qf3 {[%emt 0:09:16]} Ne8 {[%emt 0:11:26]} 19. Nxf7 {[%emt 0:02:32]} Rdc8 {[%emt 0:01:48]} 20. Nh6+ {[%emt 0:02:51]} Kh8 {[%emt 0:02:39]} 21. Be5 {[%emt 0:00:20]} Nd6 {[%emt 0:07:29]} 22. Qf6 {[%emt 0:02:40]} 1-0

[Event "CZE-ch U16 Girls 2023"]
[Site "Teplice"]
[Date "2023.03.13"]
[Round "3.2"]
[White "Havelkova, Beata"]
[Black "Kavanova, Anezka"]
[Result "1-0"]
[ECO "B22"]
[WhiteElo "1670"]
[BlackElo "1384"]
[Annotator "NA RC COMBH"]
[PlyCount "67"]
[EventDate "2023.03.09"]
[EventType "swiss"]
[EventCountry "CZE"]
[SourceTitle "playchess.com"]
[Source "ChessBase"]
[SourceQuality "1"]
[TimeControl "40/5400+30:1800+30"]

1. e4 {[%emt 0:00:03]} c5 {[%emt 0:00:14]} 2. c3 {[%emt 0:00:06]} d5 {[%emt 0:00:05]} 3. exd5 {[%emt 0:00:10]} Qxd5 {[%emt 0:00:12]} 4. d4 {[%emt 0:00:11]} g6 {[%emt 0:00:24]} 5. Nf3 {[%emt 0:00:29]} Bg7 {[%emt 0:00:10]} 6. Na3 {[%emt 0:00:38]} a6 {[%emt 0:02:41]} 7. Bc4 {[%emt 0:01:22]} Qc6 {[%emt 0:03:08]} 8. dxc5 {[%emt 0:09:08]} Qxc5 {[%emt 0:00:23]} 9. O-O {[%emt 0:01:06]} Nf6 {[%emt 0:01:22]} 10. Be3 {[%emt 0:01:27]} Qc7 {[%emt 0:00:14]} 11. Qb3 {[%emt 0:06:00]} O-O {[%emt 0:01:29]} 12. Bb6 {[%emt 0:02:43]} Qf4 {[%emt 0:05:36]} 13. Rfe1 {[%emt 0:13:46]} Nc6 {[%emt 0:01:20]} 14. Rad1 {[%emt 0:00:48]} Bg4 {[%emt 0:01:04]} 15. Rd3 {[%emt 0:07:41]} Bf5 {[%emt 0:05:23]} 16. Rde3 {[%emt 0:06:31]} Ng4 {[%emt 0:14:36]} 17. R3e2 {[%emt 0:00:27]} Nce5 {[%emt 0:03:19]} 18. Rxe5 {[%emt 0:02:40]} Bxe5 {[%emt 0:02:03]} 19. h3 {[%emt 0:01:00]} Be4 {[%emt 0:33:42]} 20. hxg4 {[%emt 0:00:51]} Qxg4 {[%emt 0:02:00]} 21. Bd5 {[%emt 0:01:19]} Bxd5 {[%emt 0:08:45]} 22. Qxd5 {[%emt 0:00:13]} Bf6 {[%emt 0:01:06]} 23. Qxb7 {[%emt 0:05:43]} Qa4 {[%emt 0:01:00]} 24. Qe4 {[%emt 0:01:41]} Qd7 {[%emt 0:02:13]} 25. Bd4 {[%emt 0:02:48]} Rab8 {[%emt 0:05:43]} 26. b3 {[%emt 0:01:46]} Rfe8 {[%emt 0:00:47]} 27. Nc4 {[%emt 0:00:59]} Qb5 {[%emt 0:01:55]} 28. Bxf6 {[%emt 0:04:54]} exf6 {[%emt 0:00:08]} 29. Qf4 {[%emt 0:00:38]} Rxe1+ {[%emt 0:01:03]} 30. Nxe1 {[%emt 0:00:05]} Re8 {[%emt 0:01:03]} 31. Nf3 {[%emt 0:00:41]} Rd8 {[%emt 0:01:01]} 32. Ne3 {[%emt 0:02:26]} Qc6 {[%emt 0:00:57]} 33. c4 {[%emt 0:00:43]} Kg7 {[%emt 0:00:16]} 34. Nd5 {[%emt 0:00:55]} 1-0